[Event "FIDE World Senior-50 CC 2023"]
[Site "Terrasini"]
[Date "2023.11.04"]
[Round "10.14"]
[White "Vlassov, Nikolai"]
[Black "Kalisky, Vladimir"]
[Result "1-0"]
[ECO "C99"]
[WhiteElo "2283"]
[BlackElo "2169"]
[Annotator "ChessBase"]
[PlyCount "79"]
[EventDate "2023.10.22"]
[EventType "swiss"]
[EventCountry "ITA"]
[SourceTitle "playchess.com"]
[Source "ChessBase"]
[SourceQuality "1"]
[TimeControl "40/5400+30:1800+30"]

1. e4 {[%emt 0:00:03]} e5 {[%emt 0:00:07]} 2. Nf3 {[%emt 0:00:06]} Nc6 {[%emt 0:00:04]} 3. Bb5 {[%emt 0:00:06]} a6 {[%emt 0:00:19]} 4. Ba4 {[%emt 0:00:07]} Nf6 {[%emt 0:00:13]} 5. O-O {[%emt 0:00:25]} Be7 {[%emt 0:00:22]} 6. Re1 {[%emt 0:00:07]} b5 {[%emt 0:00:15]} 7. Bb3 {[%emt 0:00:03]} d6 {[%emt 0:00:56]} 8. c3 {[%emt 0:00:06]} O-O {[%emt 0:00:14]} 9. h3 {[%emt 0:00:07]} Na5 {[%emt 0:01:33]} 10. Bc2 {[%emt 0:00:07]} c5 {[%emt 0:00:16]} 11. d4 {[%emt 0:00:07]} Qc7 {[%emt 0:00:38]} 12. Nbd2 {[%emt 0:02:44]} cxd4 {[%emt 0:01:26]} 13. cxd4 {[%emt 0:00:03]} Nc6 {[%emt 0:02:19]} 14. d5 {[%emt 0:02:28]} Nb4 {[%emt 0:00:24]} 15. Bb1 {[%emt 0:00:10]} a5 {[%emt 0:00:22]} 16. Nf1 {[%emt 0:01:16]} Bd7 {[%emt 0:01:19]} 17. Be3 {[%emt 0:04:51]} Rfc8 {[%emt 0:03:18]} 18. Re2 {[%emt 0:02:04]} Qb7 {[%emt 0:07:33]} 19. Ng3 {[%emt 0:01:35]} a4 {[%emt 0:05:02]} 20. Ne1 {[%emt 0:04:22]} Bd8 {[%emt 0:03:42]} 21. f4 {[%emt 0:09:37]} Bb6 {[%emt 0:03:42]} 22. fxe5 {[%emt 0:00:14]} Bxe3+ {[%emt 0:08:17]} 23. Rxe3 {[%emt 0:05:20]} Qb6 {[%emt 0:03:42]} 24. Qd2 {[%emt 0:00:42]} dxe5 {[%emt 0:00:27]} 25. Kh2 {[%emt 0:02:33]} Rc4 {[%emt 0:30:07]} 26. a3 {[%emt 0:09:29]} Rd4 {[%emt 0:02:04]} 27. Qe2 {[%emt 0:01:40]} Na6 {[%emt 0:00:59]} 28. Nf3 {[%emt 0:00:43]} Nc5 {[%emt 0:07:40]} 29. Ba2 {[%emt 0:00:44]} Bg4 {[%emt 0:00:45]} 30. hxg4 {[%emt 0:07:43]} Nxg4+ {[%emt 0:00:07]} 31. Kh3 {[%emt 0:02:32]} Qh6+ {[%emt 0:14:29]} 32. Kxg4 {[%emt 0:00:18]} f5+ {[%emt 0:01:20]} 33. Nxf5 {[%emt 0:00:17]} Qf4+ {[%emt 0:00:20]} 34. Kh3 {[%emt 0:00:02]} Rxe4 {[%emt 0:00:09]} 35. d6+ {[%emt 0:01:42]} Kh8 {[%emt 0:00:08]} 36. Rxe4 {[%emt 0:00:34]} Nxe4 {[%emt 0:00:02]} 37. g4 {[%emt 0:01:43]} h5 {[%emt 0:01:18]} 38. Rg1 {[%emt 0:01:37]} g6 {[%emt 0:00:59]} 39. N5h4 {[%emt 0:02:38]} Kh7 {[%emt 0:00:38]} 40. Qxe4 {[%emt 0:00:19]} 1-0

[Event "FIDE World Senior-50 CC 2023"]
[Site "Terrasini"]
[Date "2023.11.04"]
[Round "10.15"]
[White "Naimanov, Rinat"]
[Black "Mantovani, Renzo"]
[Result "0-1"]
[ECO "B07"]
[WhiteElo "1377"]
[BlackElo "2236"]
[Annotator "ChessBase"]
[PlyCount "68"]
[EventDate "2023.10.22"]
[EventType "swiss"]
[EventCountry "ITA"]
[SourceTitle "playchess.com"]
[Source "ChessBase"]
[SourceQuality "1"]
[TimeControl "40/5400+30:1800+30"]

1. e4 {[%emt 0:00:05]} d6 {[%emt 0:00:29]} 2. d4 {[%emt 0:00:10]} Nf6 {[%emt 0:00:10]} 3. Nc3 {[%emt 0:00:08]} c6 {[%emt 0:00:10]} 4. Nf3 {[%emt 0:02:35]} Bg4 {[%emt 0:02:57]} 5. a4 {[%emt 0:00:39]} Nbd7 {[%emt 0:01:09]} 6. Be2 {[%emt 0:02:16]} e5 {[%emt 0:02:29]} 7. h3 {[%emt 0:04:40]} Bh5 {[%emt 0:00:10]} 8. O-O {[%emt 0:02:13]} Be7 {[%emt 0:00:12]} 9. Be3 {[%emt 0:05:49]} O-O {[%emt 0:00:30]} 10. a5 {[%emt 0:01:46]} Qc7 {[%emt 0:06:30]} 11. Re1 {[%emt 0:04:16]} Rfe8 {[%emt 0:04:08]} 12. a6 {[%emt 0:06:51]} b5 {[%emt 0:05:10]} 13. Nd2 {[%emt 0:08:24]} exd4 {[%emt 0:03:45]} 14. Bxd4 {[%emt 0:03:09]} Bxe2 {[%emt 0:00:17]} 15. Nxe2 {[%emt 0:04:39]} c5 {[%emt 0:01:03]} 16. Be3 {[%emt 0:01:00]} Bf8 {[%emt 0:02:02]} 17. Ng3 {[%emt 0:00:58]} g6 {[%emt 0:01:55]} 18. f4 {[%emt 0:05:20]} Re7 {[%emt 0:09:54]} 19. c4 {[%emt 0:09:47]} b4 {[%emt 0:13:54]} 20. Qf3 {[%emt 0:09:54]} Rae8 {[%emt 0:03:02]} 21. Bf2 {[%emt 0:03:02]} Bg7 {[%emt 0:02:35]} 22. e5 {[%emt 0:04:03]} dxe5 {[%emt 0:00:37]} 23. f5 {[%emt 0:03:04]} e4 {[%emt 0:03:16]} 24. Ngxe4 {[%emt 0:05:35]} Nxe4 {[%emt 0:00:44]} 25. Nxe4 {[%emt 0:00:54]} Bxb2 {[%emt 0:03:49]} 26. Rad1 {[%emt 0:01:39]} Nf6 {[%emt 0:05:07]} 27. Bh4 {[%emt 0:04:17]} Rxe4 {[%emt 0:01:55]} 28. Rxe4 {[%emt 0:04:48]} Nxe4 {[%emt 0:00:57]} 29. Rd5 {[%emt 0:01:34]} Bd4+ {[%emt 0:06:01]} 30. Kh1 {[%emt 0:00:23]} g5 {[%emt 0:02:10]} 31. f6 {[%emt 0:00:52]} Bxf6 {[%emt 0:01:36]} 32. Qg4 {[%emt 0:00:31]} h5 {[%emt 0:02:47]} 33. Qf5 {[%emt 0:01:00]} Ng3+ {[%emt 0:02:04]} 34. Bxg3 {[%emt 0:00:30]} Qxg3 {[%emt 0:13:56]} 0-1

[Event "FIDE World Senior-50 CC 2023"]
[Site "Terrasini"]
[Date "2023.11.04"]
[Round "10.16"]
[White "Plotkin, Victor"]
[Black "Grant, Jonathan I M"]
[Result "1-0"]
[ECO "D37"]
[WhiteElo "2229"]
[BlackElo "2150"]
[Annotator "ChessBase"]
[PlyCount "127"]
[EventDate "2023.10.22"]
[EventType "swiss"]
[EventCountry "ITA"]
[SourceTitle "playchess.com"]
[Source "ChessBase"]
[SourceQuality "1"]
[TimeControl "40/5400+30:1800+30"]

1. d4 {[%emt 0:00:21]} Nf6 {[%emt 0:00:09]} 2. Nf3 {[%emt 0:00:27]} d5 {[%emt 0:00:43]} 3. c4 {[%emt 0:00:43]} e6 {[%emt 0:00:08]} 4. Nc3 {[%emt 0:00:42]} a6 {[%emt 0:00:07]} 5. cxd5 {[%emt 0:01:19]} exd5 {[%emt 0:00:07]} 6. Bg5 {[%emt 0:00:38]} Be6 {[%emt 0:00:08]} 7. e3 {[%emt 0:00:37]} Nbd7 {[%emt 0:00:47]} 8. Bd3 {[%emt 0:00:14]} Bd6 {[%emt 0:00:18]} 9. O-O {[%emt 0:01:27]} c6 {[%emt 0:00:07]} 10. Qc2 {[%emt 0:01:37]} Qc7 {[%emt 0:00:47]} 11. Bh4 {[%emt 0:13:14]} h6 {[%emt 0:00:46]} 12. Bg3 {[%emt 0:01:18]} O-O {[%emt 0:01:05]} 13. Rab1 {[%emt 0:02:16]} Rfe8 {[%emt 0:18:17]} 14. b4 {[%emt 0:00:57]} Rac8 {[%emt 0:08:59]} 15. Rfc1 {[%emt 0:01:29]} b5 {[%emt 0:15:07]} 16. a4 {[%emt 0:25:44]} Nb6 {[%emt 0:15:39]} 17. Ra1 {[%emt 0:04:31]} Bxg3 {[%emt 0:05:37]} 18. hxg3 {[%emt 0:00:55]} Qe7 {[%emt 0:01:55]} 19. axb5 {[%emt 0:04:18]} axb5 {[%emt 0:00:50]} 20. Ra6 {[%emt 0:05:52]} Qb7 {[%emt 0:09:47]} 21. Rca1 {[%emt 0:03:54]} Ra8 {[%emt 0:02:47]} 22. Rxa8 {[%emt 0:00:52]} Rxa8 {[%emt 0:00:12]} 23. Rxa8+ {[%emt 0:00:19]} Qxa8 {[%emt 0:00:24]} 24. Qa2 {[%emt 0:00:17]} Nfd7 {[%emt 0:09:29]} 25. Qxa8+ {[%emt 0:01:19]} Nxa8 {[%emt 0:00:05]} 26. Na2 {[%emt 0:01:54]} Nc7 {[%emt 0:01:04]} 27. Nd2 {[%emt 0:01:16]} Kf8 {[%emt 0:01:33]} 28. Nb3 {[%emt 0:00:47]} Ke7 {[%emt 0:00:56]} 29. f3 {[%emt 0:01:36]} Kd6 {[%emt 0:02:38]} 30. g4 {[%emt 0:01:05]} Nb6 {[%emt 0:01:23]} 31. Nc5 {[%emt 0:01:18]} Nc4 {[%emt 0:01:00]} 32. Kf2 {[%emt 0:00:45]} Ne8 {[%emt 0:00:45]} 33. Nc3 {[%emt 0:01:58]} Bc8 {[%emt 0:01:17]} 34. e4 {[%emt 0:07:37]} Nc7 {[%emt 0:00:36]} 35. e5+ {[%emt 0:00:53]} Ke7 {[%emt 0:00:13]} 36. Kg3 {[%emt 0:02:45]} Ne6 {[%emt 0:01:34]} 37. Nxe6 {[%emt 0:00:45]} Bxe6 {[%emt 0:00:19]} 38. f4 {[%emt 0:00:36]} Bd7 {[%emt 0:01:02]} 39. f5 {[%emt 0:00:58]} Bc8 {[%emt 0:00:40]} 40. Kf4 {[%emt 0:00:44]} Nb6 {[%emt 0:00:34]} 41. g5 {[%emt 0:31:31]} hxg5+ {[%emt 0:04:32]} 42. Kxg5 {[%emt 0:00:00]} Na8 {[%emt 0:00:42]} 43. g4 {[%emt 0:00:00]} Nc7 {[%emt 0:00:50]} 44. Kf4 {[%emt 0:00:00]} Bd7 {[%emt 0:02:32]} 45. Bc2 {[%emt 0:00:00]} Be8 {[%emt 0:03:45]} 46. Na2 {[%emt 0:00:00]} Bd7 {[%emt 0:05:55]} 47. Nc1 {[%emt 0:00:00]} Na6 {[%emt 0:03:18]} 48. Nd3 {[%emt 0:00:00]} Be8 {[%emt 0:01:00]} 49. Bd1 {[%emt 0:00:00]} Bd7 {[%emt 0:00:25]} 50. Bf3 {[%emt 0:00:00]} Be8 {[%emt 0:05:56]} 51. Bg2 {[%emt 0:00:00]} Bd7 {[%emt 0:02:47]} 52. Bh3 {[%emt 0:00:00]} Kf8 {[%emt 0:00:47]} 53. Ke3 {[%emt 0:00:00]} g6 {[%emt 0:02:51]} 54. Kf4 {[%emt 0:00:00]} gxf5 {[%emt 0:00:39]} 55. gxf5 {[%emt 0:00:00]} Bc8 {[%emt 0:01:16]} 56. Kg5 {[%emt 0:00:00]} Nc7 {[%emt 0:00:42]} 57. Nc5 {[%emt 0:00:00]} Ne8 {[%emt 0:00:26]} 58. Bg4 {[%emt 0:00:00]} Nc7 {[%emt 0:00:38]} 59. f6 {[%emt 0:00:00]} Bxg4 {[%emt 0:00:30]} 60. Kxg4 {[%emt 0:00:00]} Ke8 {[%emt 0:00:32]} 61. Kf5 {[%emt 0:00:00]} Na8 {[%emt 0:00:28]} 62. e6 {[%emt 0:00:14]} fxe6+ {[%emt 0:00:31]} 63. Kxe6 {[%emt 0:00:13]} Nb6 {[%emt 0:00:32]} 64. f7+ {[%emt 0:00:43]} 1-0

[Event "FIDE World Senior-50 CC 2023"]
[Site "Terrasini"]
[Date "2023.11.04"]
[Round "10.17"]
[White "Dieu, Bruno"]
[Black "Haessel, Dale R."]
[Result "0-1"]
[ECO "D00"]
[WhiteElo "2221"]
[BlackElo "2023"]
[Annotator "ChessBase"]
[PlyCount "44"]
[EventDate "2023.10.22"]
[EventType "swiss"]
[EventCountry "ITA"]
[SourceTitle "playchess.com"]
[Source "ChessBase"]
[SourceQuality "1"]
[TimeControl "40/5400+30:1800+30"]

1. d4 d5 2. Nc3 c5 3. e4 dxe4 4. d5 Nf6 5. f3 exf3 6. Nxf3 g6 7. Bc4 Bg7 8. O-O O-O 9. Qe1 Nbd7 10. Qh4 Nb6 11. Bg5 Bf5 12. Rae1 Re8 13. Bb5 Rf8 14. Bh6 a6 15. Be2 Bxh6 16. Qxh6 Ng4 17. Qd2 e6 18. h3 Nf6 19. Qh6 Nbxd5 20. Ng5 Ne3 21. Nce4 Re8 22. Nxf6+ Qxf6 0-1

[Event "FIDE World Senior-50 CC 2023"]
[Site "Terrasini"]
[Date "2023.11.04"]
[Round "10.18"]
[White "Mussanti, Diego"]
[Black "Becker, Rogerio Sperb"]
[Result "1-0"]
[ECO "B15"]
[WhiteElo "2183"]
[BlackElo "2102"]
[Annotator "ChessBase"]
[PlyCount "117"]
[EventDate "2023.10.22"]
[EventType "swiss"]
[EventCountry "ITA"]
[SourceTitle "playchess.com"]
[Source "ChessBase"]
[SourceQuality "1"]
[TimeControl "40/5400+30:1800+30"]

1. e4 {[%emt 0:00:03]} c6 {[%emt 0:00:06]} 2. d4 {[%emt 0:00:44]} d5 {[%emt 0:00:09]} 3. Nc3 {[%emt 0:00:14]} dxe4 {[%emt 0:00:10]} 4. Nxe4 {[%emt 0:00:06]} Nf6 {[%emt 0:00:08]} 5. Nxf6+ {[%emt 0:00:15]} exf6 {[%emt 0:00:12]} 6. c3 {[%emt 0:00:25]} Bd6 {[%emt 0:00:20]} 7. Bd3 {[%emt 0:00:13]} O-O {[%emt 0:00:21]} 8. Qc2 {[%emt 0:00:17]} Re8+ {[%emt 0:00:17]} 9. Ne2 {[%emt 0:00:13]} h5 {[%emt 0:00:12]} 10. Be3 {[%emt 0:00:28]} Nd7 {[%emt 0:01:10]} 11. O-O-O {[%emt 0:00:23]} b5 {[%emt 0:04:44]} 12. Bh7+ {[%emt 0:29:02]} Kh8 {[%emt 0:05:17]} 13. Be4 {[%emt 0:06:26]} Qc7 {[%emt 0:04:59]} 14. Ng3 {[%emt 0:02:56]} Nb6 {[%emt 0:06:06]} 15. Rde1 {[%emt 0:12:39]} h4 {[%emt 0:11:52]} 16. Nf5 {[%emt 0:11:21]} Bxf5 {[%emt 0:01:29]} 17. Bxf5 {[%emt 0:00:06]} Nd5 {[%emt 0:02:59]} 18. g3 {[%emt 0:01:04]} Re7 {[%emt 0:04:13]} 19. Bd2 {[%emt 0:01:33]} Rae8 {[%emt 0:55:16]} 20. Qd1 {[%emt 0:00:38]} g6 {[%emt 0:00:00]} 21. Bd3 {[%emt 0:00:31]} Rxe1 {[%emt 0:00:00]} 22. Rxe1 {[%emt 0:00:10]} Rxe1 {[%emt 0:00:00]} 23. Qxe1 {[%emt 0:00:04]} hxg3 {[%emt 0:00:00]} 24. hxg3 {[%emt 0:00:55]} Qe7 {[%emt 0:00:00]} 25. Qh1+ {[%emt 0:09:02]} Kg8 {[%emt 0:00:00]} 26. Bxb5 {[%emt 0:02:09]} Nxc3 {[%emt 0:00:00]} 27. Qxc6 {[%emt 0:05:10]} Nxa2+ {[%emt 0:00:00]} 28. Kb1 {[%emt 0:00:56]} Nb4 {[%emt 0:00:00]} 29. Qe8+ {[%emt 0:02:05]} Qxe8 {[%emt 0:00:00]} 30. Bxe8 {[%emt 0:00:06]} Kf8 {[%emt 0:00:00]} 31. Bb5 {[%emt 0:00:08]} Ke7 {[%emt 0:00:00]} 32. g4 {[%emt 0:01:16]} Nd5 {[%emt 0:00:00]} 33. Kc2 {[%emt 0:03:04]} Bf4 {[%emt 0:00:00]} 34. Bc4 {[%emt 0:01:02]} Bxd2 {[%emt 0:00:00]} 35. Kxd2 {[%emt 0:00:06]} Nc7 {[%emt 0:00:00]} 36. Kd3 {[%emt 0:04:30]} Ne6 {[%emt 0:00:00]} 37. Bb3 {[%emt 0:04:11]} Kd6 {[%emt 0:00:00]} 38. Kc4 {[%emt 0:00:58]} Kc7 {[%emt 0:00:00]} 39. Kd5 {[%emt 0:02:43]} Nd8 {[%emt 0:00:00]} 40. Kc5 {[%emt 0:00:33]} Ne6+ {[%emt 0:00:00]} 41. Bxe6 {[%emt 0:31:20]} fxe6 {[%emt 0:29:10]} 42. d5 {[%emt 0:00:30]} e5 {[%emt 0:01:12]} 43. d6+ {[%emt 0:00:00]} Kd7 {[%emt 0:00:00]} 44. Kd5 {[%emt 0:00:00]} e4 {[%emt 0:00:00]} 45. Kc5 {[%emt 0:00:00]} a5 {[%emt 0:00:00]} 46. Kd5 {[%emt 0:00:00]} a4 {[%emt 0:00:00]} 47. Kc5 {[%emt 0:00:00]} Kc8 {[%emt 0:00:00]} 48. Kd4 {[%emt 0:00:00]} Kd7 {[%emt 0:00:00]} 49. Kd5 {[%emt 0:00:00]} g5 {[%emt 0:04:07]} 50. Kc5 {[%emt 0:01:14]} f5 {[%emt 0:02:23]} 51. gxf5 {[%emt 0:03:19]} e3 {[%emt 0:01:01]} 52. fxe3 {[%emt 0:00:07]} g4 {[%emt 0:00:01]} 53. f6 {[%emt 0:00:13]} Ke6 {[%emt 0:00:17]} 54. Kc6 {[%emt 0:00:28]} g3 {[%emt 0:00:09]} 55. d7 {[%emt 0:00:12]} g2 {[%emt 0:00:08]} 56. d8=Q {[%emt 0:00:17]} g1=Q {[%emt 0:00:11]} 57. Qd6+ {[%emt 0:00:40]} Kf5 {[%emt 0:00:24]} 58. f7 {[%emt 0:00:24]} Qc1+ {[%emt 0:10:27]} 59. Kd5 {[%emt 0:00:30]} 1-0

[Event "FIDE World Senior-50 CC 2023"]
[Site "Terrasini"]
[Date "2023.11.04"]
[Round "10.19"]
[White "Duong, Thanh Nha"]
[Black "Boulard, Eric"]
[Result "0-1"]
[ECO "D05"]
[WhiteElo "2081"]
[BlackElo "2181"]
[Annotator "ChessBase"]
[PlyCount "118"]
[EventDate "2023.10.22"]
[EventType "swiss"]
[EventCountry "ITA"]
[SourceTitle "playchess.com"]
[Source "ChessBase"]
[SourceQuality "1"]
[TimeControl "40/5400+30:1800+30"]

1. b3 {[%emt 0:00:03]} d5 {[%emt 0:00:13]} 2. Bb2 {[%emt 0:00:31]} c5 {[%emt 0:00:47]} 3. Nf3 {[%emt 0:00:45]} Nf6 {[%emt 0:01:24]} 4. e3 {[%emt 0:00:53]} e6 {[%emt 0:04:38]} 5. d4 {[%emt 0:00:42]} Nbd7 {[%emt 0:02:10]} 6. Bd3 {[%emt 0:01:24]} Bd6 {[%emt 0:07:21]} 7. O-O {[%emt 0:00:33]} O-O {[%emt 0:00:17]} 8. Nbd2 {[%emt 0:00:56]} b6 {[%emt 0:05:25]} 9. Ne5 {[%emt 0:01:56]} Bb7 {[%emt 0:00:19]} 10. Qf3 {[%emt 0:10:34]} Qc7 {[%emt 0:11:30]} 11. Nxd7 {[%emt 0:01:29]} Nxd7 {[%emt 0:00:14]} 12. Qh3 {[%emt 0:01:34]} h6 {[%emt 0:12:25]} 13. c4 {[%emt 0:11:27]} dxc4 {[%emt 0:24:03]} 14. bxc4 {[%emt 0:03:52]} cxd4 {[%emt 0:04:34]} 15. exd4 {[%emt 0:00:25]} Rfe8 {[%emt 0:04:51]} 16. Ne4 {[%emt 0:11:35]} Be7 {[%emt 0:01:10]} 17. Rac1 {[%emt 0:01:42]} Qf4 {[%emt 0:02:36]} 18. g3 {[%emt 0:03:12]} Qf3 {[%emt 0:00:36]} 19. Rfe1 {[%emt 0:01:26]} Qxd3 {[%emt 0:03:29]} 20. Re3 {[%emt 0:00:30]} Qxe4 {[%emt 0:00:51]} 21. Rxe4 {[%emt 0:00:05]} Bxe4 {[%emt 0:00:05]} 22. d5 {[%emt 0:01:35]} Bf6 {[%emt 0:00:36]} 23. Bxf6 {[%emt 0:01:25]} Nxf6 {[%emt 0:00:07]} 24. d6 {[%emt 0:05:48]} Red8 {[%emt 0:01:20]} 25. Rd1 {[%emt 0:00:16]} Rac8 {[%emt 0:00:28]} 26. Qf1 {[%emt 0:01:25]} Rc6 {[%emt 0:01:00]} 27. f3 {[%emt 0:00:27]} Bc2 {[%emt 0:03:44]} 28. Rd2 {[%emt 0:00:55]} Rcxd6 {[%emt 0:00:19]} 29. Rxd6 {[%emt 0:00:40]} Rxd6 {[%emt 0:00:06]} 30. Qe2 {[%emt 0:00:25]} Bd3 {[%emt 0:01:02]} 31. Qe5 {[%emt 0:00:39]} Rd7 {[%emt 0:00:14]} 32. c5 {[%emt 0:00:49]} bxc5 {[%emt 0:00:31]} 33. Qxc5 {[%emt 0:00:03]} Kh7 {[%emt 0:02:23]} 34. h4 {[%emt 0:00:13]} h5 {[%emt 0:00:45]} 35. Kf2 {[%emt 0:01:13]} Bf5 {[%emt 0:00:23]} 36. a4 {[%emt 0:00:34]} Nd5 {[%emt 0:01:04]} 37. Qd4 {[%emt 0:01:24]} Nf6 {[%emt 0:00:15]} 38. Qc5 {[%emt 0:01:18]} Kg6 {[%emt 0:03:02]} 39. a5 {[%emt 0:00:21]} a6 {[%emt 0:00:16]} 40. Qc1 {[%emt 0:00:54]} Rd5 {[%emt 0:01:40]} 41. Qc7 {[%emt 0:31:55]} Bd3 {[%emt 0:02:39]} 42. Ke3 {[%emt 0:00:00]} Bb5 {[%emt 0:00:55]} 43. Qc2+ {[%emt 0:00:00]} Rf5 {[%emt 0:02:28]} 44. Kd4 {[%emt 0:00:00]} e5+ {[%emt 0:03:34]} 45. Ke3 {[%emt 0:00:00]} e4 {[%emt 0:00:28]} 46. fxe4 {[%emt 0:00:00]} Re5 {[%emt 0:00:10]} 47. Kd4 {[%emt 0:00:00]} Rxe4+ {[%emt 0:00:21]} 48. Kc5 {[%emt 0:00:00]} Kh6 {[%emt 0:00:45]} 49. Qc1+ {[%emt 0:00:00]} Kh7 {[%emt 0:00:12]} 50. Qc2 {[%emt 0:00:00]} Kg8 {[%emt 0:00:23]} 51. Qd2 {[%emt 0:00:00]} Rg4 {[%emt 0:01:06]} 52. Qd8+ {[%emt 0:00:00]} Kh7 {[%emt 0:00:05]} 53. Qa8 {[%emt 0:00:00]} Rxg3 {[%emt 0:01:28]} 54. Kd6 {[%emt 0:00:00]} Rg4 {[%emt 0:01:53]} 55. Qh1 {[%emt 0:00:00]} Rd4+ {[%emt 0:01:33]} 56. Ke7 {[%emt 0:00:00]} Rd7+ {[%emt 0:04:10]} 57. Kf8 {[%emt 0:00:00]} Kh8 {[%emt 0:00:18]} 58. Qc6 {[%emt 0:04:56]} Nh7+ {[%emt 0:01:04]} 59. Ke8 {[%emt 0:00:05]} Rc7 {[%emt 0:00:24]} 0-1

[Event "FIDE World Senior-50 CC 2023"]
[Site "Terrasini"]
[Date "2023.11.05"]
[Round "11.1"]
[White "Atalik, Suat"]
[Black "Godena, Michele"]
[Result "1/2-1/2"]
[ECO "D53"]
[WhiteElo "2427"]
[BlackElo "2441"]
[Annotator "RC"]
[PlyCount "29"]
[EventDate "2023.10.22"]
[EventType "swiss"]
[EventCountry "ITA"]
[SourceTitle "playchess.com"]
[Source "ChessBase"]
[SourceQuality "1"]
[TimeControl "40/5400+30:1800+30"]

1. d4 {[%emt 0:00:08]} d5 {[%emt 0:00:06]} 2. c4 {[%emt 0:00:16]} e6 {[%emt 0:00:58]} 3. Nc3 {[%emt 0:00:34]} Nf6 {[%emt 0:04:31]} 4. Bg5 {[%emt 0:02:25]} c6 {[%emt 0:07:20]} 5. e3 {[%emt 0:00:34]} h6 {[%emt 0:06:08]} 6. Bh4 {[%emt 0:00:50]} Be7 {[%emt 0:00:54]} 7. Nf3 {[%emt 0:00:30]} O-O {[%emt 0:01:51]} 8. Bd3 {[%emt 0:02:16]} dxc4 {[%emt 0:10:55]} 9. Bxc4 {[%emt 0:00:10]} c5 {[%emt 0:00:33]} 10. dxc5 {[%emt 0:05:32]} Qa5 {[%emt 0:01:29]} 11. O-O {[%emt 0:03:28]} Qxc5 {[%emt 0:05:05]} 12. Qe2 {[%emt 0:08:26]} Bd7 {[%emt 0:19:12]} 13. Bxf6 {[%emt 0:03:06]} Bxf6 {[%emt 0:37:58]} 14. Ne4 {[%emt 0:00:23]} Qe7 {[%emt 0:00:00]} 15. Nxf6+ {[%emt 0:04:58]} 1/2-1/2

[Event "FIDE World Senior-50 CC 2023"]
[Site "Terrasini"]
[Date "2023.11.05"]
[Round "11.2"]
[White "Mrva, Martin"]
[Black "Adams, Michael"]
[Result "0-1"]
[ECO "C54"]
[WhiteElo "2366"]
[BlackElo "2670"]
[Annotator "TA"]
[PlyCount "60"]
[EventDate "2023.10.22"]
[EventType "swiss"]
[EventCountry "ITA"]
[SourceTitle "playchess.com"]
[Source "ChessBase"]
[SourceQuality "1"]
[TimeControl "40/5400+30:1800+30"]

{[%evp 9,60,10,22,25,20,19,25,28,25,19,18,16,32,24,35,34,35,20,33,0,1,15,20,0,0,5,7,0,0,0,-16,-24,-8,-16,-15,-72,-43,-177,-184,-188,-188,-188,-185,-294,-283,-246,-272,-281,-280,-6179,-5294,-29993,-29994]} 1. e4 {[%emt 0:00:02]} e5 {[%emt 0:00:06]} 2. Nf3 {[%emt 0:00:10]} Nc6 {[%emt 0:00:07]} 3. Bc4 {[%emt 0:00:08]} Nf6 {[%emt 0:00:08]} 4. d3 {[%emt 0:00:06]} Bc5 {[%emt 0:00:12]} 5. c3 {[%emt 0:00:10]} a6 {[%emt 0:00:32]} 6. a4 {[%emt 0:00:20] C54: Giuoco Piano: 4 c3 Nf6, main lines with 5 d4 and 5 d3.} Ba7 {[%emt 0:00:20]} 7. O-O {[%emt 0:00:39]} d6 {[%emt 0:00:04]} 8. Nbd2 {[%emt 0:00:28] White has an edge.} O-O {[%emt 0:02:16]} 9. h3 {[%emt 0:02:14]} h6 {[%emt 0:02:35]} 10. Re1 {[%emt 0:00:12]} Be6 {[%emt 0:00:08]} (10... Nh5 {with more complications.} 11. Nf1 Qf6 12. Be3 Be6) 11. b4 {[%emt 0:07:31]} Ne7 {[%emt 0:01:55]} (11... Nh5 {keeps more tension.} 12. Bxe6 fxe6 13. Ra2 Qe8) 12. Bxe6 {[%emt 0:19:16]} fxe6 {[%emt 0:00:07]} 13. Nf1 {[%emt 0:00:06]} Ng6 {[%emt 0:02:01]} 14. Be3 {[%emt 0:04:32]} Bxe3 {[%emt 0:05:37]} 15. Rxe3 {[%emt 0:00:23] [#]} Rf7 $146 {[%emt 0:10:48]} ({Predecessor:} 15... b5 16. g3 Qd7 17. N1d2 a5 18. bxa5 Rxa5 19. axb5 Rxa1 20. Qxa1 Qxb5 21. Qa2 Re8 {½-½ Duda,J (2732)-Gukesh,D (2744) Zagreb SuperUnited Rapid 2023 (9)}) 16. Re1 {[%emt 0:04:00]} Qe7 {[%emt 0:02:54]} 17. g3 {[%emt 0:02:12]} Raf8 {[%emt 0:00:32][%cal Of6e4]} 18. N1h2 {[%emt 0:00:18]} d5 {[%emt 0:04:27]} 19. Kg2 {[%emt 0:01:38]} c5 {[%emt 0:04:35]} 20. bxc5 {[%emt 0:07:59]} Qxc5 {[%emt 0:01:26]} 21. Qb3 {[%emt 0:00:11]} Qc6 {[%emt 0:05:57][%cal Rd5e4]} 22. exd5 {[%emt 0:08:53]} (22. Qb4 $11) 22... Nxd5 $17 {[%emt 0:14:50][%cal Og6f4]} 23. Qc4 {[%emt 0:09:30] [#] Prevents Ngf4+. This move loses the game for White.} ({Only move:} 23. Re4 $1 $15) 23... Rxf3 $1 $19 {[%emt 0:05:49][%mdl 512]} 24. Nxf3 {[%emt 0:02:10] [#] Black must now prevent Qxc6.} Ndf4+ $1 {[%emt 0:00:58][%mdl 576] Deflection} 25. gxf4 {[%emt 0:03:59]} Nh4+ {[%emt 0:02:22][%mdl 64] Deflection, Double Attack} 26. Kf1 {[%emt 0:00:07]} (26. Kh2 {might work better.} Nxf3+ 27. Kh1 Qxc4 28. dxc4 Nxe1 29. Rxe1) 26... Qxf3 {[%emt 0:00:09]} ({Don't take} 26... Nxf3 27. Qxc6 bxc6 28. Re3 Rxf4 29. Ke2 $18) 27. Qxe6+ {[%emt 0:03:23]} Kh7 {[%emt 0:02:29]} 28. Qg4 {[%emt 0:03:47] Threatens to win with Qxf3.} Qxd3+ {[%emt 0:00:27]} 29. Re2 $2 {[%emt 0:02:17]} (29. Kg1 Rxf4 30. Qg3 Nf3+ 31. Kg2) 29... Rxf4 {[%emt 0:02:33]} 30. Qg3 {[%emt 0:02:56]} Qxg3 {[%emt 0:00:44] An entertaining game by Adams.   Weighted Error Value: White=0.62/Black=0.02 (flawless)} 0-1